bitfinex/quotes_ETHUSD_20250210
["timestamp","ask_amount","ask_price","bid_price","bid_amount"]
[1739197120052,3.75087,2666.1,2665.6,3.75147]
[1739197120422,3.75087,2666.1,2665.5,9.76726]
[1739197120621,0.8147,2666.3,2665.5,5.25]
[1739197120831,3.7515,2665.6,2665.5,5.25]
[1739197122040,4.56617,2665.7,2665.5,5.25]
[1739197122226,3.7515,2665.6,2665.5,5.25]
[1739197122756,3.7515,2665.6,2665.5,5.2942477]
[1739197123771,3.7515,2665.6,2665.5,0.0442477]
[1739197124216,3.7515,2665.6,2665.5,0.04431138]
[1739197124660,3.75179,2665.4,2664.9,3.75246]
[1739197124863,3.75165,2665.5,2665.0,3.75229]
[1739197125028,7.50339,2665.5,2664.9,3.78744219]
[1739197125368,4.56615,2665.7,2665.0,4.57376]
[1739197125531,3.7515,2665.6,2665.1,3.75217]
[1739197125724,3.7515,2665.6,2665.0,4.57376]
[1739197125926,0.8147,2665.7,2665.0,0.8215]
[1739197126157,3.75179,2665.4,2665.0,0.8215]
[1739197126424,3.7515,2665.6,2665.1,3.7522]
[1739197126733,4.56606,2665.7,2665.2,3.75196]
[1739197127054,3.75122,2665.8,2665.3,3.75185]
[1739197127475,6.75122,2665.8,2665.3,3.75185]
[1739197127767,3.75137,2665.7,2665.1,3.75218]
[1739197127967,3.7516,2665.6,2665.0,0.8215]
[1739197128170,7.50318,2665.6,2665.0,4.57374]
[1739197128366,3.75158,2665.6,2665.0,0.8215]
[1739197128523,3.75135,2665.7,2665.1,3.75219]
[1739197128864,6.75132,2665.8,2665.2,0.03498219]
[1739197128865,3.7517,2665.5,2665.2,0.03498219]
[1739197129022,3.7516,2665.6,2665.2,0.03498219]
[1739197129221,3.75122,2665.8,2665.2,0.03498219]
[1739197129638,4.53103,2666.0,2665.3,3.75185]
[1739197129984,3.7511,2665.9,2665.4,3.75176]
[1739197130367,3.75092,2666.1,2665.4,0.03498219]
[1739197130568,3.75092,2666.1,2665.5,4.57306]
[1739197130769,3.75092,2666.1,2665.5,8.32462]
[1739197131063,3.75076,2666.2,2665.5,4.57303]
[1739197131285,3.75076,2666.2,2665.7,3.75127]
[1739197131457,7.50085,2666.4,2665.9,3.75099]
[1739197131657,3.75037,2666.4,2665.9,0.03498219]
[1739197131983,3.75093,2666.0,2665.9,0.03498219]
[1739197132884,4.53079,2666.1,2665.9,0.03498219]
[1739197133083,3.75056,2666.3,2665.9,0.03498219]
[1739197133283,3.75093,2666.0,2665.9,0.03498219]
[1739197133489,0.78,2666.4,2665.9,0.03498219]
[1739197133795,3.75076,2666.2,2665.9,0.03498219]
[1739197134148,7.50115,2666.3,2665.7,3.78627219]
[1739197134347,3.75051,2666.3,2665.7,3.78627219]
[1739197134653,3.75074,2666.2,2665.7,3.78627219]
[1739197134886,7.50115,2666.3,2665.8,3.7512]
[1739197135090,3.75067,2666.2,2665.7,0.03498219]
[1739197135393,3.75067,2666.2,2665.7,3.78630219]
[1739197135593,4.57122,2666.7,2665.7,0.03498219]
[1739197135758,3.75108,2665.9,2665.7,0.03498219]
[1739197136093,3.75083,2666.1,2665.7,0.03498219]
[1739197136294,3.75102,2666.0,2665.7,0.03498219]
[1739197136583,3.75121,2665.8,2665.7,0.03498219]
[1739197136882,3.75121,2665.8,2665.6,5.25]
[1739197136883,3.75121,2665.8,2665.6,5.28498219]
[1739197137046,3.75116,2665.9,2665.6,5.28498219]
[1739197137245,3.75135,2665.7,2665.6,5.28498219]
[1739197137445,3.75123,2665.8,2665.3,0.03498219]
[1739197137699,3.75135,2665.7,2665.6,0.04414257]
[1739197137992,3.75135,2665.7,2665.3,0.03498219]
[1739197137993,3.75168,2665.5,2665.3,0.03498219]
[1739197138197,3.75178,2665.4,2665.3,0.03498219]
[1739197138347,3.75178,2665.4,2664.9,6.019]
[1739197138674,3.75178,2665.4,2664.9,6.05398219]
[1739197138846,3.75178,2665.4,2664.9,9.80646219]
[1739197139770,3.75168,2665.5,2665.1,3.75219]
[1739197139944,3.75145,2665.7,2665.1,3.7522]
[1739197140148,1.30728432,2666.1,2665.3,0.769]
[1739197140149,3.75089,2666.1,2665.3,0.769]
[1739197140468,0.70243627,2666.5,2665.5,3.0]
[1739197140647,0.70243627,2666.5,2666.4,3.75037]
[1739197141000,0.70243627,2666.5,2666.4,3.78535219]
[1739197141302,0.98746243,2667.2,2666.7,3.74988]
[1739197141449,0.98746243,2667.2,2666.7,0.03498219]
[1739197141656,3.74963,2667.0,2666.7,0.03498219]
[1739197141897,4.73671243,2667.2,2666.7,0.03498219]
[1739197142250,4.73671243,2667.2,2666.7,3.78492219]
[1739197142550,0.7679,2667.3,2666.7,3.78492219]
[1739197142754,4.517,2667.3,2666.7,3.78492219]
[1739197143893,3.74901,2667.4,2666.8,3.74973]
[1739197144093,3.74901,2667.4,2666.7,3.78489219]
[1739197144298,3.74901,2667.4,2666.7,7.53475219]
[1739197144466,3.74901,2667.4,2666.8,3.74978]
[1739197144788,3.74901,2667.4,2666.8,0.03498219]
[1739197145169,4.51665,2667.6,2666.9,3.74954]
[1739197145551,4.51665,2667.6,2667.0,0.769]
[1739197145990,4.51665,2667.6,2667.0,6.05398219]
[1739197146499,3.74908,2667.4,2667.0,5.28498219]
[1739197147281,4.51667,2667.6,2667.0,5.28498219]
[1739197147282,0.7679,2667.6,2667.0,9.03447219]
[1739197147452,4.53983,2668.0,2667.4,3.74895]
[1739197147668,3.77193,2668.0,2667.4,12.78279219]
[1739197147998,3.74844,2667.8,2667.4,5.28498219]
[1739197148200,3.74828,2667.9,2667.4,9.03392219]
[1739197148366,0.0238,2668.0,2667.6,3.74857]
[1739197148554,0.0238,2668.0,2667.7,0.769]
[1739197149394,0.0238,2668.0,2667.7,0.80648194]
[1739197149600,0.0238,2668.0,2667.7,4.51752]
[1739197149768,0.0238,2668.0,2667.9,3.74826]
[1739197151882,0.0238,2668.0,2667.8,9.03337219]
[1739197152089,0.0238,2668.0,2667.8,5.28498219]
[1739197152769,0.0238,2668.0,2667.9,0.04193121]
[1739197153806,3.77192,2668.0,2667.9,0.04193121]
[1739197155189,0.0238,2668.0,2667.9,0.04193121]
[1739197155871,3.77192,2668.0,2667.9,0.04193121]
[1739197157011,0.0238,2668.0,2667.9,0.04193121]
[1739197157215,0.0238,2668.0,2667.9,0.79963121]
[1739197158517,0.0238,2668.0,2667.9,4.54789121]
[1739197158813,0.0238,2668.0,2667.9,9.8328734]
[1739197159677,0.0238,2668.0,2667.9,12.8328734]
[1739197162516,0.005,2668.4,2667.9,13.3828734]
[1739197162731,0.005,2668.4,2668.3,10.87917014]
[1739197163035,0.005,2668.4,2668.3,16.20514137]
[1739197163494,0.005,2668.4,2668.3,12.83137123]
[1739197164313,0.005,2668.4,2668.3,9.08367123]
[1739197164515,3.75256,2668.4,2668.3,6.08367123]
[1739197164722,3.75256,2668.4,2668.3,5.32597123]
[1739197164894,0.005,2668.4,2668.3,5.32597123]
[1739197165136,3.75256,2668.4,2668.3,5.32597123]
[1739197165333,0.005,2668.4,2668.3,5.32597123]
[1739197166780,0.005,2668.4,2668.3,9.83137123]
[1739197166994,0.005,2668.4,2668.3,12.83137123]
[1739197168958,0.005,2668.4,2668.3,9.08367123]
[1739197169353,0.005,2668.4,2668.3,12.83137123]
[1739197171403,0.005,2668.4,2668.3,16.20514137]
[1739197171772,0.005,2668.4,2668.3,16.58064137]
[1739197171970,0.005,2668.4,2668.3,17.13064137]
[1739197172684,0.005,2668.4,2668.3,13.20687123]
[1739197172886,0.005,2668.4,2668.3,12.83137123]
[1739197175211,0.005,2668.4,2668.3,12.07367123]
[1739197175711,0.005,2668.4,2668.3,5.32597123]
[1739197176763,0.005,2668.4,2668.3,9.07367123]
[1739197180007,0.005,2668.4,2668.3,9.03268219]
[1739197180228,0.005,2668.4,2668.3,9.0749463]
[1739197180503,0.005,2668.4,2668.3,12.8326463]
[1739197181206,0.005,2668.4,2668.3,13.2081463]
[1739197181903,0.005,2668.4,2668.3,13.7581463]
[1739197182210,0.005,2668.4,2668.3,17.13191644]
[1739197183103,8.27422,2669.7,2669.0,4.52441]
[1739197183410,8.27422,2669.7,2669.1,9.07297449]
[1739197183584,3.74596,2669.6,2669.1,5.32648449]
[1739197183778,3.74602,2669.5,2669.1,5.32648449]
[1739197184284,3.74602,2669.5,2669.1,9.07305449]
[1739197184908,4.52841,2669.7,2669.1,12.81951449]
[1739197185127,4.52841,2669.7,2669.1,9.07294449]
[1739197185315,3.37377014,2670.3,2669.1,9.07294449]
[1739197185316,0.7826,2670.5,2669.2,0.03498219]
[1739197185483,0.7826,2670.5,2669.1,5.2915023]
[1739197185484,7.49056,2670.1,2669.5,3.7459]
[1739197185805,3.74526,2670.1,2669.6,0.04847347]
[1739197186013,0.7826,2670.0,2669.6,3.79427347]
[1739197186225,4.52726,2670.5,2669.8,3.74559]
[1739197186411,0.14478,2670.6,2669.9,0.86085942]
[1739197186710,0.7826,2670.5,2670.1,3.74517]
[1739197187067,0.7826,2670.5,2670.2,0.04779447]
[1739197187464,3.88926,2670.6,2670.2,0.04779447]
[1739197187699,0.14478,2670.6,2670.4,3.74463]
[1739197187900,0.14478,2670.6,2670.3,3.77987219]
[1739197188099,0.14478,2670.6,2670.5,0.04727907]
[1739197188327,0.14478,2670.6,2670.4,0.04720469]
[1739197188515,0.14478,2670.6,2670.5,0.047106]
[1739197188893,0.14478,2670.6,2670.4,3.74467]
[1739197189092,0.14478,2670.6,2670.5,0.047106]
[1739197189326,0.14478,2670.6,2670.5,3.791716]
[1739197189540,0.14478,2670.6,2670.5,3.74461]
[1739197189735,0.14478,2670.6,2670.5,3.7916237]
[1739197189934,0.14478,2670.6,2670.5,0.0470137]
[1739197190093,0.92738,2670.6,2670.5,0.0470137]
[1739197190608,0.92738,2670.6,2670.3,3.77975219]
[1739197190810,0.92738,2670.6,2670.4,0.0471124]
[1739197190992,0.92738,2670.6,2670.4,0.08209459]
[1739197192594,4.67194,2670.6,2670.4,0.03498219]
[1739197192794,4.67194,2670.6,2670.5,0.05038204]
[1739197193238,0.92738,2670.6,2670.5,0.05038204]
[1739197194000,0.14478,2670.6,2670.5,0.05038204]
[1739197195010,3.88925,2670.6,2670.5,0.05038204]
[1739197196230,0.14478,2670.6,2670.5,0.05038204]
[1739197197465,0.14478,2670.6,2670.3,3.77978219]
[1739197197663,0.14478,2670.6,2670.5,0.05600119]
[1739197197872,0.14478,2670.6,2670.4,0.05612182]
[1739197198163,0.14478,2670.6,2670.5,0.05600119]
[1739197198364,0.14478,2670.6,2670.3,0.03498219]
[1739197198534,0.14478,2670.6,2670.4,0.05612182]
[1739197198861,3.74461,2670.5,2670.4,0.05612182]
[1739197199359,3.88928,2670.6,2670.4,0.05612182]
[1739197199574,0.14478,2670.6,2670.4,0.05612182]
[1739197200275,0.14478,2670.6,2670.5,3.74461]
[1739197200767,0.14478,2670.6,2670.5,0.05596595]
[1739197200928,0.14478,2670.6,2670.3,0.03498219]
[1739197201325,0.14478,2670.6,2670.4,0.05608658]
[1739197202226,0.14478,2670.6,2670.4,3.83580877]
[1739197202433,3.03e-06,2670.6,2670.5,10.96246233]
[1739197202646,3.03e-06,2670.6,2670.5,11.39373093]
[1739197203041,3.74447303,2670.6,2670.5,0.09075079]
[1739197203444,3.03e-06,2670.6,2670.4,0.03498219]
[1739197203905,3.74461,2670.5,2670.4,0.03498219]
[1739197204192,0.8321,2670.5,2670.1,3.78005219]
[1739197204360,0.8321,2670.5,2670.1,0.03498219]
[1739197204561,0.8321,2670.5,2669.7,0.03498219]
[1739197204761,0.8321,2669.8,2669.6,0.03498219]
[1739197204963,3.74584,2669.7,2669.0,0.76173192]
[1739197205145,0.8321,2669.4,2669.0,0.03498219]
[1739197205344,3.74637,2669.3,2668.9,0.03498219]
[1739197205547,0.8321,2669.4,2668.9,0.03498219]
[1739197205844,0.8321,2669.4,2668.5,0.03498219]
[1739197206088,3.7463,2669.3,2668.5,0.11679574]
[1739197206294,0.8321,2668.8,2668.5,0.03498219]
[1739197206505,0.8321,2668.8,2668.6,0.03498219]
[1739197207066,4.57921,2668.8,2668.6,0.03498219]
[1739197207394,3.74737,2668.6,2668.2,0.03498219]
[1739197207756,4.57913,2668.8,2668.3,0.05478399]
[1739197207967,3.74724,2668.7,2668.3,0.05478399]
[1739197208256,3.74724,2668.7,2668.4,0.06149607]
[1739197208591,3.74728,2668.6,2668.2,0.03498219]
[1739197208892,7.95287014,2668.8,2668.3,0.06163199]
[1739197209095,3.74749,2668.5,2668.3,0.06163199]
[1739197209393,7.95291014,2668.8,2667.9,0.03498219]
[1739197209592,0.8321,2668.8,2668.4,3.74752]
[1739197209957,0.8321,2668.8,2668.2,3.74782]
[1739197209958,0.8321,2668.8,2668.5,0.06136016]
[1739197210159,3.74714,2668.7,2668.3,0.03498219]
[1739197210399,3.74742,2668.5,2668.4,0.05646561]
[1739197210695,3.74756,2668.4,2668.3,0.03498219]
[1739197211335,3.74814,2668.0,2667.5,0.03498219]
[1739197211555,3.74784,2668.2,2667.6,0.03498219]
[1739197211736,3.74771,2668.3,2667.6,3.84096461]
[1739197211945,3.74787,2668.2,2667.6,3.84096461]
[1739197212313,3.74809,2668.1,2667.6,0.09241461]
[1739197212715,3.74787,2668.2,2667.6,0.09241461]
[1739197212925,3.74814,2668.0,2667.7,0.03498219]
[1739197213343,3.7484,2667.8,2667.7,0.03498219]
[1739197213732,3.7484,2667.8,2667.2,3.78418219]
[1739197214672,0.808,2668.3,2667.6,4.49984]
[1739197214877,8.30248,2668.7,2667.8,3.7483]
[1739197215164,0.808,2668.7,2668.2,3.74783]
[1739197215340,4.5552,2668.7,2668.0,3.74808]
[1739197215537,4.5552,2668.7,2667.9,0.03498219]
[1739197215538,0.808,2668.7,2667.9,0.03498219]
[1739197215739,3.74802,2668.1,2667.9,0.03498219]
[1739197215943,3.74802,2668.1,2667.7,0.03498219]
[1739197215944,4.55602,2668.1,2667.7,0.03498219]
[1739197217184,3.74775,2668.3,2667.7,0.03498219]
[1739197217472,8.30303,2668.5,2667.8,3.74839]
[1739197217818,3.74791,2668.2,2667.7,0.03498219]
[1739197217933,3.748,2668.1,2667.7,0.03498219]
[1739197218133,3.74819,2668.0,2667.7,0.03498219]
[1739197218329,3.7482,2668.0,2667.7,0.03498219]
[1739197218543,3.748,2668.1,2667.7,0.03498219]
[1739197218744,3.74824,2668.0,2667.7,0.03498219]
[1739197218956,3.748,2668.1,2667.7,0.03498219]
[1739197219242,0.808,2668.2,2667.0,6.0012]
[1739197219454,3.74939,2667.1,2667.0,5.25]
[1739197219655,3.74956,2667.0,2666.6,0.7512]
[1739197219871,3.74927,2667.2,2666.6,0.7512]
[1739197220068,3.74903,2667.4,2666.6,0.7512]
[1739197220235,3.74954,2667.0,2666.3,5.25]
[1739197220568,4.55754,2667.0,2666.4,3.75032]
[1739197220732,4.55754,2667.0,2666.5,3.75021]
[1739197221069,4.55754,2667.0,2666.4,3.0]
[1739197221371,3.74974,2666.9,2666.4,3.0]
[1739197221591,3.74974,2666.9,2666.4,6.75037]
[1739197221786,0.808,2667.0,2666.4,6.75037]
[1739197221977,0.808,2667.0,2666.4,3.0]
[1739197222170,0.808,2667.0,2666.6,3.75007]
[1739197222577,4.55757,2667.0,2666.4,6.75025]
[1739197222763,4.55757,2667.0,2666.4,3.0]
[1739197222960,0.808,2667.0,2666.5,3.75009]
[1739197223164,0.808,2667.0,2666.6,3.74996]
[1739197223685,0.808,2667.0,2666.6,8.86]
[1739197223889,3.7499,2666.8,2666.6,8.86]
[1739197224248,3.74995,2666.7,2666.6,8.86]
[1739197224479,0.808,2667.0,2666.6,8.86]
[1739197224991,3.37377014,2667.5,2667.1,3.74932]
[1739197225194,0.808,2667.6,2666.9,12.60958]
[1739197225362,3.74895,2667.5,2666.9,12.60958]
[1739197225570,3.74899,2667.4,2666.9,12.60958]
[1739197225755,3.74899,2667.4,2666.9,8.86]
[1739197225955,3.74916,2667.3,2666.9,8.86]
[1739197226156,3.74899,2667.4,2666.9,8.86]
[1739197226358,4.55677,2667.6,2667.1,3.74929]
[1739197226581,4.55677,2667.6,2666.9,12.60958]
[1739197226891,0.808,2667.6,2667.2,3.74921]
[1739197227196,0.808,2667.9,2667.3,8.86]
[1739197227395,4.55635,2667.9,2667.3,3.74901]
[1739197227695,3.37377014,2667.8,2667.4,0.04272373]
[1739197227869,3.74869,2667.6,2667.4,0.04272373]
[1739197228066,0.808,2667.9,2667.5,8.86]
[1739197228385,7.49722,2667.7,2667.5,8.89959431]
[1739197228579,3.74859,2667.7,2667.5,8.89959431]
[1739197228958,0.808,2667.9,2667.5,3.78830431]
[1739197229155,3.74814,2668.0,2667.5,3.78830431]
[1739197229351,7.12175014,2668.1,2667.5,3.78833431]
[1739197229551,0.785,2668.2,2667.6,12.60859]
[1739197229801,4.53247,2668.5,2667.7,0.8128832]
[1739197230101,3.74717,2668.7,2668.0,3.74808]
[1739197230313,3.74756,2668.5,2668.0,8.86]
[1739197230487,3.7478,2668.3,2668.1,0.0391281]
[1739197230687,4.53284,2668.2,2668.1,0.0391281]
[1739197231903,8.08284,2668.2,2668.1,0.0391281]
[1739197232270,3.74878,2667.6,2667.2,8.86]
[1739197232461,7.49756,2667.6,2667.1,8.86]
[1739197232664,3.74884,2667.5,2667.2,0.09030654]
[1739197233500,3.7491,2667.3,2667.2,0.09030654]
[1739197233861,3.74925,2667.2,2666.8,8.86]
[1739197234160,3.74925,2667.2,2666.9,0.09054546]
[1739197235001,3.74944,2667.1,2666.9,0.09054546]
[1739197235975,3.74925,2667.2,2666.9,0.09054546]
[1739197236365,3.74943,2667.1,2666.9,0.09054546]
[1739197236690,3.74953,2667.0,2666.9,0.09054546]
[1739197236889,3.7494,2667.1,2666.9,0.09054546]
[1739197237063,3.7494,2667.1,2666.5,8.86]
[1739197237268,3.7494,2667.1,2666.6,0.09078442]
[1739197237484,3.74955,2667.0,2666.6,0.09078442]
[1739197238764,3.7494,2667.1,2666.6,0.09078442]
[1739197239002,3.74953,2667.0,2666.6,0.09078442]
[1739197239997,3.7494,2667.1,2666.6,3.84085442]
[1739197240306,3.74903,2667.4,2666.7,3.74981]
[1739197240533,0.785,2667.5,2667.3,3.74897]
[1739197240741,10.12209014,2667.9,2667.5,3.74877]
[1739197240742,0.8315,2667.8,2667.5,3.74877]
[1739197240891,0.8315,2667.8,2667.4,0.09007019]
[1739197241097,0.8315,2667.8,2666.9,8.86]
[1739197241420,3.37377014,2667.6,2666.8,0.7797]
[1739197241731,4.57998,2667.8,2667.1,3.74936]
[1739197242042,3.74872,2667.6,2666.9,3.74961]
[1739197242332,3.74872,2667.6,2666.8,0.7797]
[1739197242333,3.37377014,2667.6,2666.8,4.5295]
[1739197242499,3.74894,2667.5,2667.0,0.09032067]
[1739197242831,3.74894,2667.5,2667.1,0.09024104]
[1739197243136,3.74939,2667.1,2666.7,5.25]
[1739197243299,3.74927,2667.2,2666.7,3.74993]
[1739197243630,3.74927,2667.2,2666.6,3.75003]
[1739197243631,4.53241,2667.4,2666.6,3.75003]
[1739197243950,3.74914,2667.3,2666.6,3.75003]
[1739197244126,3.74914,2667.3,2666.8,3.74979]
[1739197244310,4.53241,2667.4,2666.8,3.74969]
[1739197244509,4.53241,2667.4,2666.9,3.74959]
[1739197244998,3.74898,2667.4,2666.8,3.74979]
[1739197245301,3.74898,2667.4,2666.9,3.74964]
[1739197245495,4.53194,2667.7,2667.3,3.7491]
[1739197245700,4.53194,2667.7,2667.2,3.74923]
[1739197245901,0.7834,2667.7,2667.2,3.74923]
[1739197246126,4.53195,2667.7,2667.2,3.74923]
[1739197246640,4.53195,2667.7,2667.1,8.27809]
[1739197246821,4.53195,2667.7,2667.1,4.52878]
[1739197247027,8.28063,2667.7,2667.1,4.52878]
[1739197247193,3.74905,2667.4,2666.8,3.74981]
[1739197247397,3.74905,2667.4,2666.7,9.6395]
[1739197247639,3.74926,2667.2,2666.7,4.52942]
[1739197247855,3.74941,2667.1,2666.7,4.52942]
[1739197248101,3.74926,2667.2,2666.7,8.27928]
[1739197248448,3.74906,2667.4,2666.9,3.74962]
[1739197248750,3.74906,2667.4,2666.8,3.74967]
[1739197248954,3.74872,2667.6,2667.1,3.74927]
[1739197249188,3.74876,2667.6,2667.0,3.74944]
[1739197249480,3.74896,2667.5,2666.9,7.49926]
[1739197249651,3.74896,2667.5,2666.9,3.74959]
[1739197249858,3.7487,2667.6,2666.9,3.74959]
[1739197250062,3.74868,2667.6,2667.0,3.74944]
[1739197250378,3.7489,2667.5,2667.0,3.74944]
[1739197250559,0.7834,2667.7,2667.1,3.74939]
[1739197250887,3.74876,2667.6,2667.1,3.7493]
[1739197251193,7.49757,2667.6,2667.1,3.7493]
[1739197251492,3.74914,2667.3,2666.8,3.74981]
[1739197251716,3.74941,2667.1,2666.7,3.74985]
[1739197252192,4.53274,2667.2,2666.7,3.74985]
[1739197252358,0.7834,2667.2,2666.8,3.7498]
[1739197252790,4.53269,2667.2,2666.7,3.74985]
[1739197252943,3.74939,2667.1,2666.5,3.75009]
[1739197253148,4.53265,2667.2,2666.7,3.74994]
[1739197253848,0.7834,2667.2,2666.8,3.74979]
[1739197254358,0.7834,2667.2,2666.7,3.74994]
[1739197254359,4.53267,2667.2,2666.7,3.74994]
[1739197254580,3.74919,2667.3,2666.7,3.74988]
[1739197254779,3.74919,2667.3,2666.8,3.74973]
[1739197255160,3.74919,2667.3,2666.4,9.6395]
[1739197255373,3.74938,2667.2,2666.6,3.75002]
[1739197255576,3.74946,2667.1,2666.6,3.75002]
[1739197255800,7.49892,2667.1,2666.6,3.75002]
[1739197255943,3.74965,2667.0,2666.5,3.75023]
[1739197256148,3.74965,2667.0,2666.5,7.50034]
[1739197256384,3.74965,2667.0,2666.5,16.36034]
[1739197256594,3.74942,2667.1,2666.6,3.75006]
[1739197257196,3.74942,2667.1,2666.7,3.74995]
[1739197257365,3.74926,2667.2,2666.8,3.74978]
[1739197257685,3.74907,2667.4,2666.8,3.83994707]
[1739197257993,0.7691,2668.1,2667.8,3.74833]
[1739197258353,0.70143805,2668.2,2668.1,3.74798]
[1739197258761,0.70143805,2668.2,2668.1,3.83703047]
[1739197258963,0.70143805,2668.2,2668.1,0.08905047]
[1739197259389,3.74765,2668.4,2667.9,8.86]
[1739197259625,3.7477,2668.3,2668.0,0.08904844]
[1739197259774,2.89728109,2668.5,2668.0,0.08904844]
[1739197260122,3.74793,2668.2,2668.0,0.08904844]
[1739197260420,3.74762,2668.4,2668.0,0.08904844]
[1739197260622,3.74762,2668.4,2667.9,12.60823]
[1739197260918,3.74762,2668.4,2668.0,0.0888218]
[1739197261218,3.74787,2668.2,2668.0,0.0888218]
[1739197261738,0.7691,2668.3,2668.0,0.0888218]
[1739197261874,3.74795,2668.2,2668.0,0.0888218]
[1739197262285,3.74798,2668.1,2668.0,0.0888218]
[1739197263230,3.74795,2668.2,2668.0,0.0888218]
[1739197263375,3.74798,2668.1,2668.0,0.0888218]
[1739197263575,3.74795,2668.2,2668.0,0.0888218]
[1739197263970,3.74763,2668.4,2668.0,0.0888218]
[1739197264189,3.74785,2668.2,2668.0,0.0888218]
[1739197264417,3.74798,2668.1,2668.0,0.0888218]
[1739197265220,4.51708,2668.1,2668.0,0.0888218]
[1739197265795,3.74834,2667.9,2667.4,0.7638]
[1739197266008,3.74857,2667.7,2667.4,0.7638]
[1739197266330,3.74897,2667.4,2666.9,3.74957]
[1739197266831,0.7691,2667.5,2666.8,0.7638]
[1739197267032,3.74896,2667.4,2666.9,3.74954]
[1739197267387,7.49758,2667.6,2667.0,3.74945]
[1739197267594,7.49752,2667.6,2667.0,3.74944]
[1739197267934,3.74876,2667.6,2667.0,3.74944]
[1739197268091,3.74876,2667.6,2666.8,4.51353]
[1739197268092,3.74897,2667.4,2666.9,3.74966]
[1739197268606,3.74897,2667.4,2666.8,4.51353]
[1739197268914,3.74897,2667.4,2666.8,8.26324]
[1739197269233,3.74897,2667.4,2666.9,3.74964]
[1739197269437,3.74897,2667.4,2666.8,4.51351]
[1739197269585,3.74941,2667.1,2666.8,0.7638]
[1739197269948,4.5183,2667.3,2666.7,3.74987]
[1739197270082,4.5183,2667.3,2666.6,3.75]
[1739197270282,3.74891,2667.5,2666.8,3.7498]
[1739197270570,3.74899,2667.4,2666.9,3.74956]
[1739197271234,3.74924,2667.3,2666.7,3.74995]
[1739197271530,3.74932,2667.2,2666.7,12.60995]
[1739197271903,3.74956,2667.0,2666.7,8.86]
[1739197272237,4.51866,2667.0,2666.5,6.53792925]
[1739197272422,4.51866,2667.0,2666.5,2.02398925]
[1739197272625,4.51866,2667.0,2666.6,0.09046697]
[1739197272993,3.74988,2666.8,2666.6,0.09046697]
[1739197273186,4.5425,2667.0,2666.6,0.09046697]
[1739197273391,3.74975,2666.9,2666.6,0.09046697]
[1739197273695,4.5425,2667.0,2666.6,0.09046697]
[1739197274096,3.74983,2666.8,2666.6,0.09046697]
[1739197274324,7.49971,2666.8,2666.6,0.09046697]
[1739197274521,3.74995,2666.7,2666.6,0.09046697]
[1739197275267,3.75052,2666.3,2665.9,9.6908]
[1739197275467,3.75052,2666.3,2666.0,8.95094507]
[1739197276220,3.75079,2666.1,2666.0,8.95094507]
[1739197276439,3.75066,2666.2,2666.0,8.95094507]
[1739197276622,3.75079,2666.1,2666.0,8.95094507]
[1739197277436,3.7506,2666.3,2666.0,8.95094507]
[1739197277620,3.75043,2666.4,2666.0,8.95094507]
[1739197277821,3.75054,2666.3,2666.0,8.95094507]
[1739197278325,4.54314,2666.5,2666.0,8.95094507]
[1739197278667,3.75002,2666.7,2666.1,0.8308]
[1739197278861,3.7503,2666.5,2666.2,0.09120757]
[1739197279062,3.7929,2666.8,2666.0,8.86]
[1739197279063,3.75003,2666.7,2666.1,3.75078]
[1739197279262,7.5001,2666.7,2666.2,0.09120757]
[1739197279435,3.75003,2666.7,2666.2,0.09120757]
[1739197279761,3.75003,2666.7,2666.2,3.84177757]
[1739197280263,3.75003,2666.7,2666.2,17.95177757]
[1739197280579,3.7497,2666.9,2666.3,3.75042]
[1739197280727,3.74996,2666.7,2666.3,8.86]
[1739197280928,3.75011,2666.6,2666.4,0.0910482]
[1739197281675,3.74996,2666.7,2666.4,0.0910482]
[1739197281887,3.74974,2666.9,2666.4,0.0910482]
[1739197282091,3.75023,2666.5,2666.4,0.0910482]
[1739197282393,4.54313,2666.5,2666.4,0.0910482]
[1739197286469,3.7505,2666.4,2665.8,12.61113]
[1739197286789,0.7929,2666.7,2665.9,0.09188667]
[1739197286988,3.75083,2666.1,2665.9,0.09188667]
[1739197287159,3.75072,2666.2,2665.9,0.09188667]
[1739197287500,6.65163904,2666.6,2665.8,3.75107]
[1739197287501,3.75046,2666.4,2665.8,3.75107]
[1739197287664,3.75046,2666.4,2665.9,3.84282398]
[1739197288281,0.7929,2666.7,2665.9,0.09186398]
[1739197288450,3.7499,2666.8,2666.3,3.75044]
[1739197288650,3.7499,2666.8,2666.4,0.09147006]
[1739197288890,3.75017,2666.6,2666.4,0.09147006]
[1739197289049,3.75017,2666.6,2666.1,17.86072]
[1739197289248,3.75017,2666.6,2666.2,0.09155228]
[1739197289448,7.41372904,2666.3,2666.2,0.09155228]
[1739197289647,3.75065,2666.2,2666.1,14.11]
[1739197289897,3.7513,2665.8,2665.5,5.25]
[1739197290192,3.7513,2665.8,2665.6,0.08874277]
[1739197290501,3.75098,2666.0,2665.6,0.08874277]
[1739197290851,3.75126,2665.8,2665.6,0.08874277]
[1739197291080,7.41456904,2665.7,2665.6,0.08874277]
[1739197291271,3.75123,2665.8,2665.6,0.08874277]
[1739197291482,3.75135,2665.7,2665.6,0.08874277]
[1739197292147,6.65254904,2666.0,2665.6,0.08874277]
[1739197292347,3.75103,2666.0,2665.6,0.08874277]
[1739197292753,3.7511,2665.9,2665.6,0.08874277]
[1739197292997,6.65212904,2666.3,2665.6,3.84010277]
[1739197293202,3.75072,2666.2,2665.7,3.75126]
[1739197293356,3.75072,2666.2,2665.6,3.84010277]
[1739197293556,7.50147,2666.2,2665.8,0.08858334]
[1739197293779,7.50147,2666.2,2665.7,0.08866305]
[1739197293987,3.75079,2666.1,2665.9,0.08850363]
[1739197294298,3.75103,2666.0,2665.5,5.25]
[1739197294802,3.75101,2666.0,2665.5,5.25]